Cogmind - Beta 16.1 @@@ ROGUE MODE // 2026.04.20 @ 08:28:51 Player: ae Result: Destroyed by YI-UF0 with YI-UF0's Doublenader Performance ------------- Evolutions (0) 0 Regions Visited (2) 400 Robots Destroyed (14) 70 Value Destroyed (123) 123 Prototype IDs (0) 0 Alien Tech Used (0) 0 Bonus (0) 0 TOTAL SCORE: 593 Bonus ------- None Cogmind --------- Core Integrity 0/250 Matter 229/300 Energy 47/100 System Corruption 0% Temperature Cool (4) Movement Flying (37) Location -10/Mines Parts ------- > --- POWER (1) -------- (None) > --- PROPULSION (2) --- Flight Unit Flight Unit > --- UTILITY (2) ------ (None) > --- WEAPON (2) ------- (None) > --- INVENTORY (5) ---- Light Treads Flight Unit Flight Unit Peak State ------------ > --- POWER ------------ (None) > --- PROPULSION ------- Light Treads Light Treads > --- UTILITY ---------- Seismic Detector > --- WEAPON ----------- Light Assault Rifle Improved Light Cannon > --- INVENTORY -------- Ion Engine Tractor Beam Light Assault Rifle Improved Light Cannon Maul [Rating: 6] Favorites ----------- Power Ion Engine Engine Ion Engine Propulsion Light Treads Treads Light Treads Flight Unit Flight Unit Utility Terrain Scanner Device Terrain Scanner Processor Signal Interpreter Weapon Light Assault Rifle Ballistic Gun Light Assault Rifle Ballistic Cannon Improved Light Cannon Launcher Grenade Launcher Build | -11 -10 -10 ------- Run | Yrd Mat Min Slots Evolved . | . . . Power . | . . . Propulsion . | . . . Utility . | . . . Weapon . | . . . Parts Attached 20 | 5 8 7 Power 1 | . 1 . Engine 1 | . 1 . Core . | . . . Reactor . | . . . Propulsion 11 | 2 3 6 Treads 5 | 2 3 . Leg . | . . . Wheel . | . . . Hover . | . . . Flight 6 | . . 6 Utility 4 | 1 3 . Device 3 | 1 2 . Storage . | . . . Processor 1 | . 1 . Hackware . | . . . Protection . | . . . Artifact . | . . . Weapon 4 | 2 1 1 Energy Gun . | . . . Energy Cannon . | . . . Ballistic Gun 2 | 2 . . Ballistic Cannon 1 | . 1 . Launcher 1 | . . 1 Special Weapon . | . . . Impact Weapon . | . . . Slashing Weapon . | . . . Piercing Weapon . | . . . Special Melee Weapon . | . . . Unidentified Prototypes . | . . . Parts Lost 7 | . 1 6 Power . | . . . Propulsion 2 | . . 2 Utility 1 | . . 1 Weapon 4 | . 1 3 Highest Loss Streak 3 | . 1 3 To Critical Strikes . | . . . Average Backups 4 | 1 4 4 Power . | . . . Propulsion 1 | . 1 3 Utility . | . . . Weapon 1 | . 2 1 Tool/Special . | . . . Unused Backups 5 | . 4 1 Power . | . . . Propulsion 2 | . 2 . Utility 1 | . 1 . Weapon 2 | . 1 1 Tool/Special . | . . . Average Slot Usage (%) 67 | . 72 59 Treads 18 | . 28 3 Flight 9 | . . 24 Device 12 | . 14 10 Processor 2 | . 3 . Ballistic Gun 18 | . 24 10 Ballistic Cannon 3 | . . 7 Launcher 1 | . . 3 Peak Build Rating 6 | 5 6 6 Average Rating 4 | 3 5 4 On Entrance 3 | . 5 4 Avg Prop Armor Cover (%) 29 | 28 29 . Naked Turns . | . . . Heaviest Build 7 | 3 3 7 Greatest Support 20 | 20 3 8 Greatest Overweight (x) . | . . . Average Overweight (x) . | . . . Largest Inventory Capacity 5 | 5 5 5 Average Capacity 5 | 5 5 5 Most Carried 5 | 2 5 5 Average Carried 4 | 1 4 4 Final Capacity 5 | 5 5 5 Final Carried 5 | 2 5 3 Class Distribution -------------------- 100% | Mutant Dominant Class ---------------- Mutant | -10/Materials Mutant | -10/Mines Resources | -11 -10 -10 ----------- Run | Yrd Mat Min Matter Collected 526 | 255 128 143 Remotely . | . . . Salvage Created 283 | 101 150 32 Parts 25 | 8 12 5 Haulers Intercepted 1 | . 1 . Recyclers Shooed 1 | . 1 . Parts Field Recycled . | . . . Retrieved Matter . | . . . Parts Self-Destructed . | . . . Prevented . | . . . Parts Restored . | . . . Kills | -11 -10 -10 ------- Run | Yrd Mat Min Combat Hostiles Destroyed 8 | . 4 4 Guns 4 | . 4 . Cannons 3 | . . 3 AOE 1 | . . 1 Classes Destroyed 6 | 2 4 . Worker 2 | . 2 . Tunneler 1 | 1 . . Hauler 1 | . 1 . Recycler 1 | 1 . . Operator 1 | . 1 . Swarmer 8 | . 4 4 Best Kill Streak 3 | 2 2 3 Combat Bots Only 3 | . 1 3 Max Kills in Single Turn 1 | 1 1 1 Gunslinging . | . . . Exploded 1 | . . 1 Melee . | . . . Uniques/NPCs Destroyed . | . . . Combat | -11 -10 -10 -------- Run | Yrd Mat Min Hostile Shots Fired 102 | . 61 41 Missed 26 | . 11 15 Hits 76 | . 50 26 Projectile 76 | . 50 26 AOE 13 | . . 13 Critical Strikes 1 | . 1 . Damage Taken 933 | . 395 538 Core 268 | . 59 209 Absorbed by Shields . | . . . Core Remaining (%) 100 | 100 . . Volleys Fired 64 | 5 48 11 Largest 2 | 2 2 2 Hottest 53 | 40 53 53 Shots Fired 94 | 10 66 18 Gun 80 | 10 63 7 Cannon 13 | . 3 10 Launcher 1 | . . 1 Special . | . . . Kinetic 93 | 10 66 17 Thermal . | . . . Explosive 1 | . . 1 Electromagnetic . | . . . Robot Hit Streak 10 | 3 10 4 Robot Miss Streak 6 | 2 6 2 Penetration Max . | . . . Secondary Targets . | . . . Shots Hit Robots 54 | 6 39 9 Core Hits 26 | 3 17 6 Critical Kills . | . . . Critical Parts Destroyed . | . . . Critical Strikes . | . . . Melee Attacks . | . . . Impact . | . . . Slashing . | . . . Piercing . | . . . Sneak Attacks . | . . . Combat Hostiles . | . . . Follow-up Attacks . | . . . Damage Inflicted 592 | 48 311 233 Guns 393 | 48 311 34 Cannons 109 | . . 109 Explosions 90 | . . 90 Melee . | . . . Ramming . | . . . Kinetic 502 | 48 311 143 Thermal . | . . . Explosive 90 | . . 90 Electromagnetic . | . . . Impact . | . . . Slashing . | . . . Piercing . | . . . Highest Corruption . | . . . Average Corruption . | . . . Corruption Purged . | . . . Corruption Blocked . | . . . Overload Shots . | . . . Overflow Damage . | . . . Projectiles . | . . . Explosions . | . . . Melee . | . . . Knockbacks 1 | . . 1 Impact . | . . . Kinetic 1 | . . 1 Secondary . | . . . Self-Inflicted Damage 10 | . . 10 Shots 1 | . . 1 Rammed . | . . . Targets Rammed . | . . . Kicked . | . . . Crushed . | . . . Highest Temperature 4 | . 2 4 Average Temperature 1 | . 1 1 Received Heat Transfer 33 | . 6 27 Siege Activations . | . . . Martial Activations . | . . . Shielding Activations . | . . . Robots Disrupted . | . . . Combat Hostiles . | . . . Robots Corrupted . | . . . Combat Hostiles . | . . . Parts Fried . | . . . Impact Corruptions . | . . . Robots Melted . | . . . Combat Hostiles . | . . . Parts Melted . | . . . Heat Transferred . | . . . Parts Sabotaged . | . . . Parts Stolen . | . . . Parts Stripped . | . . . Power Chain Reactions . | . . . Alert | -11 -10 -10 ------- Run | Yrd Mat Min Maximum Alert Level . | . . . Low Security (%) 100 | 100 100 100 Level 1 . | . . . Level 2 . | . . . Level 3 . | . . . Level 4 . | . . . Level 5 . | . . . High Security . | . . . Max Security . | . . . Peak Influence 90 | 10 75 90 Initial 25 | . . 25 Average 29 | 2 25 40 Influence Increases 400 | 10 217 173 Destroy 0b10 Robot/C 160 | . 80 80 Destroy 0b10 Robot/NC 30 | 10 20 . Destroy Leader 22 | . 12 10 Disable Machine 15 | . 15 . Destroy Structure 8 | . . 8 Partial Spotted 15 | . 15 . Lose Combat Pursuer 150 | . 75 75 Influence Decreases 357 | 10 152 195 Entered New Map 40 | . . 40 Time Decay 247 | 10 142 95 Lost Part 70 | . 10 60 Squads Dispatched 3 | . 3 . Investigation 1 | . 1 . Extermination . | . . . Reinforcement 2 | . 2 . Assault . | . . . Garrison . | . . . Intercept . | . . . Searches Triggered . | . . . Construction Impeded . | . . . Haulers Reinforced . | . . . Active Scanning Responses . | . . . Cargo Convoy Interrupts . | . . . Stealth | -11 -10 -10 --------- Run | Yrd Mat Min Distress Signals 2 | . 1 1 Communications Jammed . | . . . Distress Signals . | . . . Times Spotted 33 | . 19 14 Peak Tracking Total 6 | . 6 6 Tactical Retreats 6 | . 3 3 Traps | -11 -10 -10 ------- Run | Yrd Mat Min Traps Triggered . | . . . Indirectly . | . . . Trap Hack Attempts . | . . . Triggered . | . . . Disarmed . | . . . Reprogrammed . | . . . Reused . | . . . Traps Extracted . | . . . Installed . | . . . Triggered . | . . . Machines | -11 -10 -10 ---------- Run | Yrd Mat Min Machines Disabled 1 | . 1 . Max in Single Turn 1 | . 1 . Machines Repaired . | . . . Machines Dismantled . | . . . Machines Sabotaged . | . . . Overloaded Fab Kills . | . . . Hacking | -11 -10 -10 --------- Run | Yrd Mat Min Machines Accessed 4 | . 3 1 Terminals 3 | . 3 . Fabricators . | . . . Repair Stations . | . . . Recycling Units . | . . . Scanalyzers . | . . . Garrison Access . | . . . Total Hacks 9 | . 8 1 Successful 3 | . 2 1 Failed 6 | . 6 . Catastrophic 1 | . 1 . Database Lockouts . | . . . Manual 3 | . 3 . Terminals 8 | . 8 . Fabricators . | . . . Repair Stations . | . . . Recycling Units . | . . . Scanalyzers . | . . . Garrison Access . | . . . Terminal Hacks 2 | . 1 1 Open Door 1 | . . 1 Hauler Manifests 1 | . 1 . Fabricator Hacks . | . . . Repair Station Hacks . | . . . Recycling Unit Hacks . | . . . Scanalyzer . | . . . Garrison Access Hacks . | . . . Unauthorized Hacks 1 | . 1 . Terminals 1 | . 1 . Operators 1 | . 1 . Fabricators . | . . . Repair Stations . | . . . Recycling Units . | . . . Scanalyzers . | . . . Garrison Access . | . . . Data Cores Recovered . | . . . Used . | . . . Hacking Detections 3 | . 3 . Full Trace Events 1 | . 1 . Feedback Events . | . . . Feedback Blocked . | . . . Robot Schematics Acquired . | . . . Robots Built . | . . . Authchips . | . . . Time . | . . . Total Robot Build Rating . | . . . Part Schematics Acquired . | . . . Parts Built . | . . . Authchips . | . . . Time . | . . . Total Part Build Rating . | . . . Part Studies Acquired . | . . . Parts Repaired . | . . . Time . | . . . Parts Recycled . | . . . Recycled Matter . | . . . Retrieved Matter . | . . . Retrieved Components . | . . . Parts Scanalyzed . | . . . Part Schematics Acquired . | . . . Parts Damaged . | . . . Bothacking | -11 -10 -10 ------------ Run | Yrd Mat Min Used RIF Installer . | . . . Robots Hacked . | . . . Non-combat . | . . . Combat . | . . . Robot Hacks Applied . | . . . Relay Couplers Released . | . . . Fabnet Peak Effective % . | . . . Robots Rewired . | . . . Allies Hacked . | . . . Hacks Repelled . | . . . Allies | -11 -10 -10 -------- Run | Yrd Mat Min Total Allies . | . . . Largest Group . | . . . Highest-Rated Group . | . . . Highest-Rated Ally . | . . . Total Orders . | . . . Ally Attacks . | . . . Total Damage . | . . . Kills . | . . . Allies Corrupted . | . . . Allies Melted . | . . . Intel | -11 -10 -10 ------- Run | Yrd Mat Min Active Infowar (turns) 532 | 2 363 167 Sensors 92 | . 92 . Terrain 395 | . 228 167 Seismic 45 | 2 43 . Robot Analysis Total . | . . . Derelict Logs Recovered 2 | . . 2 Drone Launches . | . . . Drone Recoveries . | . . . Exploration | -11 -10 -10 ------------- Run | Yrd Mat Min Turns Passed 641 | 41 365 235 Spaces Moved 884 | 32 469 383 Core 499 | 30 469 . Treads 2 | 2 . . Legs . | . . . Wheels . | . . . Hover . | . . . Flight 383 | . . 383 Fastest Speed 37 | 50 50 37 Average Speed 44 | 56 50 37 Slowest Speed 160 | 160 50 40 Overloaded Moves . | . . . Propulsion Burnouts . | . . . Robots Hopped 15 | . . 15 Potential Cave-ins . | . . . Cave-ins Triggered . | . . . Exploration Rate (%) 51 | 4 80 71 Regions Visited 2 Branch Regions 1 Pre-discovered Areas 2 | . . 2 Known Exits Taken . | . . . Unknown Exits Taken 2 | 1 1 . Scrap Searched 1 | . . 1 Spaces Dug . | . . . Terrain Destroyed 8 | . . 8 Melee . | . . . Projectile . | . . . AOE 8 | . . 8 Terrain Rammed . | . . . Walls Destroyed . | . . . Machines Disabled . | . . . Actions | -11 -10 -10 --------- Run | Yrd Mat Min Total 1036 | 43 552 441 Wait 45 | . 3 42 Move 853 | 31 468 354 Hop 14 | . . 14 Pick Up 14 | 2 9 3 Fast Attach 8 | 5 3 . Attach 6 | . 2 4 Detach 3 | . 3 . Swap 15 | . 5 10 Drop 14 | . 11 3 Fire 64 | 5 48 11 Melee . | . . . Ram . | . . . Kick . | . . . Crush . | . . . Escape Stasis . | . . . Rewire . | . . . Trap . | . . . Miscellaneous . | . . . Route ------- -11/Scrapyard -10/Materials (discovered 5 exits: [*Mat x2] / *Min x2 / [Sub]) -10/Mines (discovered 1 exit: [*Mat]) History --------- Turn | Location | Event 10 | -11/Scrapyard | Discovered new exit (range 15) 42 | -11/Scrapyard | Entered Materials 111 | -10/Materials | Discovered new exit (range 14) 151 | -10/Materials | Discovered new exit (range 16) 269 | -10/Materials | Discovered new exit (range 14) 310 | -10/Materials | Build established: Mutant 331 | -10/Materials | Discovered new exit (range 5) 391 | -10/Materials | Discovered new exit (range 16) 407 | -10/Materials | Entered Mines 408 | -10/Mines | Assembled infested the area 408 | -10/Mines | YI-UF0 nonchalantly dropped a Grenade Launcher on the ground 417 | -10/Mines | Learned location of Storage (-7) 533 | -10/Mines | Found a damaged Exp. Sensor Array with a note attached 541 | -10/Mines | Discovered new exit (range 10) 559 | -10/Mines | Core integrity fell below 50% 598 | -10/Mines | Met a Derelict who couldn't figure out how to use a Trap Extractor 602 | -10/Mines | Learned location of Zion (-6) 609 | -10/Mines | Lost 3 parts (1n1u1w) 639 | -10/Mines | Core integrity fell below 20% 642 | -10/Mines | Destroyed by YI-UF0 with YI-UF0's Doublenader Last Messages --------------- And who the hell trapped this place to begin with?!" 00598_ WX-OEC(g): "I give up! Here you try, I'm outta here before something nasty happens..." 00598_ Tosses Imp. Trap Extractor to the ground. 00598_ T-07 Excavator is excavating. 00602_ Acquired derelict log, extracted data. World map updated: -6/Zion. 00604_ Searching scrap... 00604_ Found Flight Unit. 00604_ Found Med. Storage Unit. 00604_ Found Utility Shielding. 00604_ Found Huge Storage Unit. 00604_ Found 68 Matter. 00607_ Acquired 68 matter. 00629_ YI-UF0 mumbles something. 00637_ YI-UF0 mumbles something. 00638_ Flight Unit destroyed. 00640_ Imp. Light Cannon destroyed. 00642_ Grenade Launcher destroyed. Map ----- +----------------------------------------------------+ | | | | | | | | | | | | | | | | | | | | | | | | | ?????????????????????????????????????????????????? | | ?????????????????????????????????????????????????? | | ####????????????????????????????????????????#####? | | #???????????????????????????????????????## ## | | #???????????????????????????????????##### # | | # #??????????????????????????????????## < # | | # #??????????????????????????????????# | | # #??????????????????????????????????# | | # #???????????????????????????????????# # | | # ##########????#####?????####????????## # | | # #???## ##???## ######??#?## | | # ######## #???# #??## # # #??##### | | # #??????# #???# #### ##????### | | # #??????# #???# ##@ #??????## | | # #????### #???# ####????# | | #???## ##### ##???# | | #???# ### #???# | | #???# ## #???# | | ##???## % ##???# | | ##?????### ###????# | | #????????# ## g ### ##??????# | | #????????# # ####?#### #######???????## | | #????????# # # ###???????#####?#????????????# | | ######???# # [ #????????????????????????????# | | ## #???# # ????????????#?????????#?????# | | ##### ##???????????????????????????# | | ##???????#??????????????????#?# | | ### #### #????????????#??????#????????## | | # # #?## #????????????????#####???##???# | | #### [ #?? ##???????????????## ###???#### | | ???## #?? #????????????????# ##### # | | ???# #??# ????????????????# #?# | | ???# ### ##????????#?????## ####?# | | ???# ##??????????#### ##????# | | ???# ##????????## #??#??## | | ???# " ##??????## ##?????##! | | ???## " #????#?# ##?????# | | ????## ##?????# ##????## | +----------------------------------------------------+ Best States ------------- Heat Dissipation 25 Energy Generation 10 Energy Capacity 250 Matter Stores 300 Matter Capacity 300 Sight Range 16 Robot Scan Range 14 Terrain Scan Range 14 Terrain Scan Density 10 Evasion (%) 62 Recoil Reduction 2 Item Schematics ----------------- None Robot Schematics ------------------ None Fabricated ------------ Nothing Repaired ---------- Nothing Studied --------- None Alien Tech Used ----------------- None Achievements -------------- None Challenges ------------ None Game ------ Seed WeightGodLauncher Manual? 0 Play Time 00:08:49 Cumulative 218.6 hours Start 2026.04.20 @ 08:19:49 End 2026.04.20 @ 08:28:51 Sessions 1 Manual Loads 0 Difficulty Rogue Special Mode None Game No. 141 Rogue 137 Adventurer 4 Explorer 0 Win Type - Total 41 Types 40/0/1/0/0/0/0/0/0/0 Lore% 85 Gallery% 63 Achievement% 58 Wizard Run 0 Options --------- Layout 0 ASCII 0 Keyboard 1 Movement Vi Keybinds 1 Fullscreen 2 Font 18/SmallcapsGlow Map View 76x50 Zoom Use 0% Tactical HUD 1 Map Filters NONE Filters NONE Steam 1 RUN: d5b88565-a989-48d2-9b9c-0455b54a25dd